bitfinex/quotes_SOLUSD_20241208
["timestamp","ask_amount","ask_price","bid_price","bid_amount"]
[1733693848876,0.4892917,235.82,235.81,8.25921444]
[1733693849384,0.4892917,235.82,235.8,8.25921444]
[1733693851667,0.4892917,235.82,235.81,8.25921444]
[1733693851986,0.4892917,235.82,235.81,32.03609844]
[1733693859214,0.4892917,235.82,235.81,23.776884]
[1733693859569,0.4892917,235.82,235.81,32.03609844]
[1733693865110,0.4892917,235.82,235.81,23.776884]
[1733693865267,0.4892917,235.82,235.81,32.03609844]
[1733693868307,0.4892917,235.82,235.81,23.776884]
[1733693868602,0.4892917,235.82,235.81,32.03609844]
[1733693869011,0.4892917,235.82,235.81,23.776884]
[1733693870073,0.4892917,235.82,235.81,32.03609844]
[1733693879089,0.4892917,235.82,235.81,23.776884]
[1733693879612,0.4892917,235.82,235.81,32.03609844]
[1733693881305,0.4892917,235.82,235.81,23.776884]
[1733693887893,0.4892917,235.82,235.8,23.776884]
[1733693922853,0.4892917,235.82,235.81,46.33653627]
[1733693923057,0.4892917,235.82,235.81,59.62455635]
[1733693924288,0.4892917,235.82,235.81,70.22625635]
[1733693925881,0.4892917,235.82,235.81,43.6502162]
[1733693927156,0.4892917,235.82,235.81,56.97713147]
[1733693927360,6.4386,235.94,235.82,23.776884]
[1733693927654,6.4386,235.94,235.89,8.25921444]
[1733693932994,0.4892917,236.06,235.97,20.25098]
[1733693933184,0.4892917,236.06,236.03,23.776884]
[1733693933389,0.4892917,236.06,236.05,32.03609844]
[1733693934005,0.4892917,236.06,236.05,38.56393806]
[1733693934617,0.4892917,236.06,236.05,45.27746871]
[1733693934988,0.4892917,236.06,236.05,38.74962909]
[1733693935498,0.4892917,236.06,236.05,32.03609844]
[1733693942220,0.4892917,236.06,236.05,23.776884]
[1733693944434,0.4892917,236.06,236.04,23.776884]
[1733693945000,0.4892917,236.06,236.05,8.89455624]
[1733693945333,0.4892917,236.06,236.05,24.4122258]
[1733693945628,0.4892917,236.06,236.05,32.67144024]
[1733693946707,0.4892917,236.06,236.05,24.4122258]
[1733693953524,0.4892917,236.06,236.03,0.09428746]
[1733693956906,0.4892917,236.06,236.03,23.87117146]
[1733693957938,14.51990444,236.04,236.03,0.09428746]
[1733693958145,47.4312722,236.04,236.03,0.09428746]
[1733693958520,14.39441444,236.04,236.03,0.09428746]
[1733693961333,14.51990444,236.04,236.03,0.09428746]
[1733693967164,6.1352,236.04,236.03,0.09428746]
[1733693967373,14.39441444,236.04,236.03,0.09428746]
[1733693975961,6.1352,236.04,236.03,0.09428746]
[1733693976167,14.39441444,236.04,236.03,0.09428746]
[1733693995696,23.1772,236.05,236.03,0.09428746]
[1733693996175,20.0,236.04,236.03,0.09428746]
[1733693996585,28.25921444,236.04,236.03,0.09428746]
[1733694000277,20.0,236.04,236.03,0.09428746]
[1733694000468,28.25921444,236.04,236.03,0.09428746]
[1733694012085,28.38470444,236.04,236.03,0.09428746]
[1733694013716,61.4215622,236.04,236.03,8.746e-05]
[1733694014295,28.38470444,236.04,236.03,8.746e-05]
[1733694015212,66.4215622,236.04,236.03,8.746e-05]
[1733694016317,28.38470444,236.04,236.03,8.746e-05]
[1733694019693,20.0,236.01,235.93,8.25921444]
[1733694019895,8.25921444,236.0,235.93,8.25921444]
[1733694020792,8.25921444,235.99,235.92,8.25921444]
[1733694023536,0.12549,236.02,235.85,6.1854]
[1733694023537,8.25921444,235.96,235.85,6.1854]
[1733694023709,8.25921444,235.96,235.89,32.03609844]
[1733694024203,8.25921444,235.96,235.89,23.776884]
[1733694024398,8.25921444,235.95,235.89,23.776884]
[1733694026222,8.25921444,235.96,235.89,23.776884]
[1733694026924,8.25921444,235.96,235.89,32.03609844]
[1733694028816,8.25921444,235.96,235.88,9.80491444]
[1733694030806,10.0,236.02,235.91,8.25921444]
[1733694030807,0.12549,235.98,235.91,8.25921444]
[1733694033813,20.0,235.95,235.91,8.25921444]
[1733694035242,20.0,235.95,235.9,8.25921444]
[1733694036336,20.0,236.0,235.94,8.25921444]
[1733694036647,20.0,236.0,235.96,8.25921444]
[1733694036817,20.0,236.0,235.95,8.25921444]
[1733694037021,20.0,236.0,235.95,7.75921444]
[1733694037733,20.0,235.99,235.95,7.75921444]
[1733694038421,20.0,235.99,235.94,8.25921444]
[1733694039411,20.0,236.0,235.94,8.25921444]
[1733694039737,20.0,235.98,235.94,8.25921444]
[1733694043041,20.0,236.0,235.93,8.25921444]
[1733694043245,20.0,236.0,235.94,8.25921444]
[1733694043433,20.0,235.98,235.94,8.25921444]
[1733694049148,3.1778,236.01,235.94,8.25921444]
[1733694049333,20.0,236.0,235.94,8.25921444]
[1733694050449,20.0,236.0,235.89,24.41260058]
[1733694050759,20.0,236.0,235.94,8.25921444]
[1733694055658,28.25921444,236.0,235.93,8.25921444]
[1733694056528,28.25921444,236.0,235.89,23.776884]
[1733694056734,8.25921444,235.99,235.92,8.25921444]
[1733694058557,8.25921444,235.97,235.89,23.776884]
[1733694058863,8.25921444,235.97,235.9,8.25921444]
[1733694059167,8.25921444,235.95,235.88,8.25921444]
[1733694059367,8.25921444,235.94,235.87,8.25921444]
[1733694059664,8.25921444,235.93,235.87,8.25921444]
[1733694059844,8.25921444,235.94,235.87,8.25921444]
[1733694060970,8.25921444,235.91,235.83,1.6289]
[1733694061260,8.25921444,235.91,235.84,32.03609844]
[1733694061434,8.25921444,235.91,235.84,8.25921444]
[1733694061949,8.25921444,235.92,235.85,8.25921444]
[1733694062964,8.25921444,235.92,235.84,23.776884]
[1733694063150,8.25921444,235.92,235.85,8.25921444]
[1733694065868,8.25921444,235.93,235.86,8.25921444]
[1733694068376,8.25921444,235.93,235.86,7.75921444]
[1733694068876,8.25921444,235.91,235.84,23.776884]
[1733694069069,8.25921444,235.91,235.84,32.03609844]
[1733694070544,8.25921444,235.88,235.81,8.25921444]
[1733694071059,8.25921444,235.89,235.79,20.0]
[1733694071391,8.25921444,235.89,235.77,1.5499]
[1733694071392,8.25921444,235.89,235.78,20.0]
[1733694071564,8.25921444,235.89,235.82,8.25921444]
[1733694072086,8.25921444,235.89,235.83,8.25921444]
[1733694072279,8.25921444,235.92,235.86,8.25921444]
[1733694072590,28.25921444,235.93,235.87,8.25921444]
[1733694072887,28.25921444,235.93,235.86,8.25921444]
[1733694077268,28.25921444,235.93,235.85,8.25921444]
[1733694077786,8.25921444,235.92,235.85,8.25921444]
[1733694078374,8.25921444,235.91,235.84,8.25921444]
[1733694080382,20.0,235.93,235.85,8.25921444]
[1733694080579,8.25921444,235.92,235.85,8.25921444]
[1733694080878,28.25921444,235.93,235.86,8.25921444]
[1733694082583,1.5912,235.95,235.87,32.03609844]
[1733694082789,6.0666,235.96,235.92,8.25921444]
[1733694083105,8.25921444,236.0,235.93,8.25921444]
[1733694083483,8.25921444,235.98,235.85,23.776884]
[1733694083679,8.25921444,235.97,235.9,8.25921444]
[1733694083868,8.25921444,235.99,235.92,8.25921444]
[1733694085896,8.25921444,235.98,235.92,8.25921444]
[1733694087000,8.25921444,235.98,235.91,8.25921444]
[1733694087407,8.25921444,236.0,235.92,32.03609844]
[1733694088400,8.25921444,236.0,235.93,8.25921444]
[1733694088604,8.25921444,235.99,235.92,32.03609844]
[1733694088805,8.25921444,235.98,235.92,23.776884]
[1733694094989,8.25921444,235.95,235.85,0.63571754]
[1733694095190,8.25921444,235.94,235.87,8.25921444]
[1733694096290,8.25921444,235.94,235.88,23.776884]
[1733694097002,8.25921444,235.95,235.88,32.03609844]
[1733694098613,8.25921444,235.96,235.88,32.03609844]
[1733694100208,8.25921444,235.96,235.89,8.25921444]
[1733694102824,8.25921444,235.97,235.9,8.25921444]
[1733694105324,8.25921444,235.96,235.89,8.25921444]
[1733694105986,8.25921444,235.95,235.85,23.776884]
[1733694106185,8.25921444,235.95,235.88,8.25921444]
[1733694107798,8.25921444,235.96,235.88,8.25921444]
[1733694108529,8.25921444,235.96,235.89,8.25921444]
[1733694110016,8.25921444,235.96,235.88,8.25921444]
[1733694111839,8.25921444,235.96,235.89,8.25921444]
[1733694112824,8.25921444,235.97,235.9,8.25921444]
[1733694113519,8.25921444,235.97,235.85,23.776884]
[1733694113735,8.25921444,235.97,235.89,8.25921444]
[1733694118610,8.25921444,235.96,235.89,8.25921444]
[1733694123424,28.25921444,235.98,235.89,8.25921444]
[1733694128548,3.1783,235.97,235.89,8.25921444]
[1733694132250,8.25921444,235.96,235.85,23.776884]
[1733694132431,8.25921444,235.94,235.85,23.776884]
[1733694132637,8.25921444,235.93,235.85,23.776884]
[1733694132856,8.25921444,235.92,235.85,32.03609844]
[1733694133541,7.70016103,235.92,235.85,32.03609844]
[1733694134535,7.70016103,235.92,235.86,8.25921444]
[1733694135135,7.70016103,235.92,235.85,23.776884]
[1733694135351,8.25921444,235.93,235.86,8.25921444]
[1733694135936,8.25921444,235.92,235.85,8.25921444]
[1733694138563,6.3014,235.96,235.8,56.81374176]
[1733694138868,14.56061444,235.96,235.89,8.25921444]
[1733694139860,6.3014,235.96,235.9,8.25921444]
[1733694141170,14.56061444,235.96,235.89,8.25921444]
[1733694145763,6.3014,235.96,235.89,8.25921444]
[1733694145958,14.56061444,235.96,235.89,8.25921444]
[1733694146671,14.56061444,235.96,235.84,0.63582838]
[1733694146851,8.25921444,235.95,235.84,0.63582838]
[1733694147051,8.25921444,235.95,235.88,8.25921444]
[1733694149775,6.3014,235.96,235.9,8.25921444]
[1733694150557,1.5344,236.01,235.93,8.25921444]
[1733694150558,20.0,235.99,235.93,8.25921444]
[1733694150755,20.0,235.97,235.93,8.25921444]
[1733694150958,20.0,235.97,235.92,8.25921444]
[1733694151948,28.25921444,235.97,235.9,8.25921444]
[1733694153779,20.0,235.97,235.91,8.25921444]
[1733694156673,4.7123,236.01,235.91,8.25921444]
[1733694156973,4.7123,236.01,235.86,0.63574232]
[1733694156974,28.25921444,235.99,235.92,8.25921444]
[1733694164877,28.25921444,235.99,235.91,8.25921444]
[1733694165387,20.0,235.99,235.91,8.25921444]
[1733694165690,28.25921444,235.99,235.91,8.25921444]
[1733694169692,20.0,235.99,235.92,8.25921444]
[1733694170272,20.0,235.99,235.93,8.25921444]
[1733694174196,28.25921444,235.99,235.92,8.25921444]
[1733694177593,28.25921444,235.99,235.9,8.25921444]
[1733694182114,8.25921444,235.97,235.87,0.12549]
[1733694182393,8.25921444,235.97,235.9,8.25921444]
[1733694182908,8.25921444,235.97,235.88,8.25921444]
[1733694183201,14.54511444,235.95,235.87,8.25921444]
[1733694183371,14.54511444,235.95,235.84,0.12549]
[1733694183569,14.54511444,235.95,235.88,8.25921444]
[1733694185701,14.54511444,235.95,235.82,23.902374]
[1733694185892,6.2859,235.95,235.88,8.25921444]
[1733694186497,14.54511444,235.95,235.88,8.25921444]
[1733694190233,8.25921444,235.94,235.81,0.6358589]
[1733694190412,8.25921444,235.94,235.79,14.96961527]
[1733694190413,8.25921444,235.92,235.85,8.25921444]
[1733694190581,8.25921444,235.92,235.8,0.12549]
[1733694190893,8.25921444,235.92,235.85,8.25921444]
[1733694194189,8.25921444,235.91,235.85,8.25921444]
[1733694196922,8.25921444,235.92,235.85,8.25921444]
[1733694197707,8.25921444,235.92,235.79,1.6427]
[1733694197708,8.25921444,235.93,235.86,8.25921444]
[1733694200702,1.6159,235.94,235.87,8.25921444]
[1733694200898,9.87511444,235.94,235.88,8.25921444]
[1733694204140,8.25921444,235.93,235.87,8.25921444]
[1733694209032,8.25921444,235.93,235.8,33.7982897]
[1733694209033,8.25921444,235.93,235.85,8.25921444]
[1733694209241,8.25921444,235.92,235.8,0.12549]
[1733694209408,8.25921444,235.92,235.85,8.25921444]
[1733694209848,8.25921444,235.91,235.84,8.25921444]
[1733694210011,8.25921444,235.92,235.85,8.25921444]
[1733694210518,8.25921444,235.9,235.79,20.0]
[1733694210722,8.25921444,235.89,235.82,8.25921444]
[1733694211333,8.25921444,235.89,235.79,20.0]
[1733694211534,8.25921444,235.89,235.82,8.25921444]
[1733694211920,8.25921444,235.89,235.83,8.25921444]
[1733694212218,8.25921444,235.9,235.83,8.25921444]
[1733694212543,8.25921444,235.89,235.83,8.25921444]
[1733694213319,8.25921444,235.9,235.83,8.25921444]
[1733694214441,8.25921444,235.89,235.83,8.25921444]
[1733694215324,8.25921444,235.89,235.79,20.0]
[1733694215517,8.25921444,235.89,235.83,8.25921444]
[1733694215710,8.25921444,235.89,235.79,20.0]
[1733694215933,8.25921444,235.89,235.83,8.25921444]
[1733694217345,8.25921444,235.85,235.72,17.2229]
[1733694217509,8.25921444,235.83,235.77,8.25921444]
[1733694217931,8.25921444,235.83,235.72,10.6055]
[1733694218135,8.25921444,235.78,235.72,8.25921444]
[1733694218343,8.25921444,235.78,235.67,1.6301]
[1733694218344,8.25921444,235.76,235.67,1.6301]
[1733694218545,8.25921444,235.76,235.61,1.6301]
[1733694218737,8.25921444,235.75,235.69,8.25921444]
[1733694219252,8.25921444,235.73,235.61,1.6301]
[1733694219560,6.4923,235.76,235.7,8.25921444]
[1733694219847,6.4923,235.76,235.73,8.25921444]
[1733694220356,9.84231444,235.79,235.73,8.25921444]
[1733694220649,1.5831,235.79,235.73,8.25921444]
[1733694221551,9.84231444,235.79,235.73,8.25921444]
[1733694221754,6.4923,235.83,235.75,8.25921444]
[1733694222052,8.25921444,235.82,235.76,8.25921444]
[1733694222726,14.75151444,235.83,235.77,8.25921444]
[1733694223024,6.4923,235.83,235.77,8.25921444]
[1733694223428,6.4923,235.83,235.78,8.25921444]
[1733694223838,6.4923,235.83,235.7,0.63617356]
[1733694223839,6.4923,235.83,235.77,8.25921444]
[1733694224826,6.4923,235.83,235.78,8.25921444]
[1733694225136,6.4923,235.83,235.77,8.25921444]
[1733694225731,14.75151444,235.83,235.76,8.25921444]
[1733694229754,8.25921444,235.85,235.78,8.25921444]
[1733694230755,8.25921444,235.84,235.77,8.25921444]
[1733694232230,28.25921444,235.85,235.77,8.25921444]
[1733694233837,28.13609044,235.85,235.77,8.25921444]
[1733694234245,8.25921444,235.84,235.77,8.25921444]
[1733694238370,20.0,235.85,235.77,8.25921444]
[1733694238670,8.25921444,235.84,235.77,8.25921444]
[1733694238868,8.25921444,235.82,235.75,32.03609844]
[1733694239178,8.25921444,235.8,235.7,43.902374]
[1733694239546,8.25921444,235.8,235.74,23.776884]
[1733694239939,8.25921444,235.8,235.73,8.25921444]
[1733694240369,8.25921444,235.79,235.72,8.25921444]
[1733694241268,8.25921444,235.8,235.73,8.25921444]
[1733694242273,20.0,235.85,235.73,8.25921444]
[1733694242466,8.25921444,235.8,235.73,8.25921444]
[1733694242869,8.25921444,235.8,235.72,8.25921444]
[1733694243772,8.25921444,235.79,235.72,8.25921444]
[1733694255329,8.25921444,235.85,235.78,8.25921444]
[1733694255658,8.25921444,235.86,235.79,8.25921444]
[1733694255987,8.25921444,235.85,235.78,8.25921444]
[1733694257577,8.25921444,235.85,235.79,8.25921444]
[1733694257760,28.25921444,235.86,235.79,8.25921444]
[1733694261903,28.25921444,235.86,235.8,8.25921444]
[1733694262193,20.0,235.86,235.8,8.25921444]
[1733694265506,20.0,235.86,235.81,8.25921444]
[1733694265665,20.0,235.86,235.8,8.25921444]
[1733694266484,28.25921444,235.86,235.8,8.25921444]
[1733694268907,28.25921444,235.86,235.79,8.25921444]
[1733694271610,28.25921444,235.86,235.8,8.25921444]
[1733694272110,20.0,235.86,235.81,8.25921444]
[1733694272615,1.5895,235.88,235.82,8.25921444]
[1733694273913,1.5895,235.88,235.83,8.25921444]
[1733694279097,1.5895,235.88,235.82,8.25921444]
[1733694280503,1.5895,235.88,235.84,8.25921444]
[1733694282807,1.5895,235.88,235.83,8.25921444]
[1733694283306,9.84871444,235.88,235.81,8.25921444]
[1733694287628,1.5895,235.88,235.82,8.25921444]
[1733694287803,1.5895,235.88,235.83,8.25921444]
[1733694288697,1.5895,235.88,235.83,9.36713804]
[1733694299124,1.5895,235.88,235.83,1.1079236]
[1733694302055,1.5895,235.88,235.83,9.36713804]
[1733694302237,16.28441444,235.94,235.87,8.25921444]
[1733694302424,8.0252,235.94,235.87,8.25921444]
[1733694302619,8.0252,235.94,235.83,1.74382326]
[1733694302620,8.0252,235.94,235.88,8.25921444]
[1733694302815,8.0252,235.94,235.87,8.25921444]
[1733694303345,8.0252,235.94,235.88,8.25921444]
[1733694308242,16.28441444,235.94,235.87,8.25921444]
[1733694311845,8.25921444,235.93,235.84,23.776884]
[1733694312052,8.25921444,235.92,235.85,8.25921444]
[1733694312220,8.25921444,235.9,235.84,23.776884]
[1733694313947,8.0252,235.94,235.83,1.1079236]
[1733694313948,8.25921444,235.89,235.83,1.1079236]
[1733694314119,8.25921444,235.88,235.83,1.1079236]
[1733694318050,8.25921444,235.87,235.83,1.1079236]
[1733694318635,8.25921444,235.88,235.83,1.1079236]
[1733694321957,8.25921444,235.89,235.83,1.1079236]
[1733694325962,8.25921444,235.86,235.83,1.1079236]
[1733694330467,8.25921444,235.84,235.83,1.1079236]
[1733694332945,8.25921444,235.85,235.83,1.1079236]
[1733694334934,8.25921444,235.84,235.83,1.1079236]
[1733694343666,11.2378,235.87,235.83,1.1079236]
[1733694343980,8.25921444,235.97,235.84,23.776884]
[1733694344182,8.25921444,235.94,235.86,8.25921444]
[1733694344342,8.25921444,235.94,235.84,23.776884]
[1733694344546,8.25921444,235.94,235.86,8.25921444]
[1733694345449,8.25921444,235.94,235.87,8.25921444]
[1733694345653,8.25921444,235.96,235.89,8.25921444]
[1733694346048,8.25921444,235.97,235.89,8.25921444]
[1733694346544,14.30061444,235.98,235.91,8.25921444]
[1733694347478,8.25921444,235.98,235.91,8.25921444]
[1733694347780,8.25921444,235.98,235.93,23.776884]
[1733694347983,8.25921444,235.98,235.92,23.776884]
[1733694349448,8.25921444,235.98,235.91,23.776884]
[1733694349664,8.25921444,235.98,235.91,32.03609844]
[1733694353962,8.25921444,235.98,235.92,8.25921444]
[1733694354471,8.25921444,235.98,235.93,23.776884]
[1733694356991,8.25921444,235.98,235.92,23.776884]
[1733694358894,8.25921444,235.97,235.91,23.776884]
[1733694360285,8.25921444,235.96,235.91,23.776884]
[1733694360457,8.25921444,235.95,235.89,23.776884]
[1733694361500,8.25921444,235.96,235.89,32.03609844]
[1733694362697,8.25921444,235.95,235.88,23.776884]
[1733694362903,8.25921444,235.93,235.83,1.1079236]
[1733694363199,8.25921444,235.93,235.86,8.25921444]
[1733694363584,8.25921444,235.94,235.86,8.25921444]
[1733694363906,8.25921444,235.94,235.87,8.25921444]
[1733694364484,8.25921444,235.94,235.88,23.776884]
[1733694364683,8.25921444,235.94,235.92,1.1079236]
[1733694367820,8.25921444,235.93,235.92,1.1079236]
[1733694377912,8.25921444,235.95,235.92,1.1079236]
[1733694378705,8.25921444,235.95,235.88,8.25921444]
[1733694380624,8.25921444,235.95,235.87,8.25921444]
[1733694380833,8.25921444,235.94,235.87,8.25921444]
[1733694381124,20.0,236.0,235.89,8.25921444]
[1733694381430,20.0,235.94,235.89,8.25921444]
[1733694382819,20.0,235.94,235.88,23.776884]
[1733694382820,3.1782,235.98,235.88,32.03609844]
[1733694383118,8.25921444,235.95,235.88,32.03609844]
[1733694383494,8.25921444,235.94,235.88,23.776884]
[1733694383826,8.25921444,235.93,235.87,23.776884]
[1733694384722,8.25921444,235.92,235.81,1.5002]
[1733694384935,8.25921444,235.82,235.74,1.5289]
[1733694385217,8.25921444,235.82,235.75,8.25921444]
[1733694385430,8.25921444,235.81,235.75,8.25921444]
[1733694387428,8.25921444,235.81,235.76,23.776884]
[1733694388002,8.25921444,235.81,235.75,23.776884]
[1733694388831,8.25921444,235.8,235.74,9.78811444]
[1733694389000,8.25921444,235.79,235.74,1.5289]
[1733694390219,8.25921444,235.79,235.69,23.776884]
[1733694390532,3.1803,235.83,235.69,23.776884]
[1733694390533,8.25921444,235.78,235.69,23.776884]
[1733694390712,8.25921444,235.77,235.72,23.776884]
[1733694391236,8.25921444,235.75,235.68,9.78811444]
[1733694391403,8.25921444,235.74,235.68,1.5289]
[1733694391901,8.25921444,235.75,235.68,9.78811444]
[1733694392623,8.25921444,235.73,235.68,23.776884]
[1733694392827,8.25921444,235.72,235.63,7.5391]
[1733694393132,8.25921444,235.69,235.63,1.5289]
[1733694393505,8.25921444,235.68,235.63,1.5289]
[1733694393700,8.25921444,235.68,235.61,8.25921444]
[1733694394101,8.25921444,235.67,235.61,8.25921444]
[1733694394307,8.25921444,235.65,235.58,1.5289]
[1733694394533,8.25921444,235.65,235.59,8.25921444]
[1733694395403,8.25921444,235.65,235.58,1.5289]
[1733694395608,8.25921444,235.65,235.58,9.78811444]
[1733694396039,8.25921444,235.64,235.58,9.78811444]
[1733694396404,8.25921444,235.63,235.58,1.5289]
[1733694397152,0.12549,235.7,235.59,8.25921444]
[1733694397323,8.25921444,235.66,235.59,8.25921444]
[1733694397519,8.25921444,235.65,235.59,8.25921444]
[1733694397822,8.25921444,235.65,235.59,23.776884]
[1733694398033,0.12549,235.7,235.59,23.776884]
[1733694398202,23.1819,235.71,235.61,8.25921444]
[1733694398406,8.25921444,235.69,235.63,8.25921444]
[1733694398715,8.25921444,235.69,235.64,23.776884]
[1733694399119,8.25921444,235.68,235.64,23.776884]
[1733694399321,8.25921444,235.68,235.63,23.776884]
[1733694401412,8.25921444,235.68,235.62,23.776884]
[1733694401819,8.25921444,235.67,235.62,23.776884]
[1733694402013,8.25921444,235.67,235.61,23.776884]
[1733694402608,8.25921444,235.68,235.61,8.25921444]
[1733694402816,20.0,235.74,235.62,32.03609844]
[1733694403017,8.25921444,235.7,235.63,8.25921444]
[1733694403241,3.1814,235.75,235.65,8.25921444]
[1733694403420,8.25921444,235.73,235.66,8.25921444]
[1733694403619,8.25921444,235.73,235.67,8.25921444]
[1733694403908,8.25921444,235.73,235.68,23.776884]
[1733694404831,8.25921444,235.73,235.67,23.776884]
[1733694405147,8.25921444,235.72,235.67,23.776884]
[1733694405534,20.0,235.74,235.67,32.03609844]
[1733694405743,28.25921444,235.74,235.67,32.03609844]
[1733694405919,8.25921444,235.73,235.67,23.776884]
[1733694406638,8.25921444,235.72,235.67,23.776884]
[1733694407248,8.25921444,235.71,235.66,23.776884]
[1733694407534,8.25921444,235.7,235.66,23.776884]
[1733694407841,8.25921444,235.69,235.62,32.03609844]
[1733694408536,8.25921444,235.69,235.62,23.776884]
[1733694408843,8.25921444,235.8,235.69,23.776884]
[1733694409142,8.25921444,235.8,235.72,8.25921444]
[1733694409328,8.25921444,235.8,235.73,23.776884]
[1733694409839,6.398,235.87,235.74,9.90551444]
[1733694410038,8.25921444,235.84,235.76,8.25921444]
[1733694410339,8.25921444,235.84,235.77,23.776884]
[1733694410933,8.25921444,235.85,235.77,32.03609844]
[1733694411848,8.25921444,235.84,235.77,32.03609844]
[1733694412140,8.25921444,235.85,235.78,8.25921444]
[1733694412333,8.25921444,235.85,235.79,23.776884]
[1733694414550,3.179,235.92,235.79,23.776884]
[1733694414723,8.25921444,235.9,235.84,23.776884]
[1733694414923,8.25921444,235.89,235.84,23.776884]
[1733694415124,8.25921444,235.88,235.84,23.776884]
[1733694415326,8.25921444,235.87,235.84,23.776884]
[1733694415520,8.25921444,235.88,235.82,23.776884]
[1733694415945,8.25921444,235.88,235.82,32.03609844]
[1733694416536,8.25921444,235.89,235.82,32.03609844]
[1733694418937,8.25921444,235.88,235.82,23.776884]
[1733694420324,8.25921444,235.88,235.76,0.6359761]
[1733694420325,8.25921444,235.86,235.8,23.776884]
[1733694426154,8.25921444,235.85,235.83,1.1079236]
[1733694426665,8.25921444,235.87,235.83,1.1079236]
[1733694427349,8.25921444,235.85,235.83,1.1079236]
[1733694427672,8.25921444,235.86,235.83,1.1079236]
[1733694427836,8.25921444,235.87,235.83,1.1079236]
[1733694433155,8.25921444,235.89,235.83,1.1079236]
[1733694434668,8.25921444,235.88,235.83,1.1079236]
[1733694435763,8.25921444,235.86,235.83,1.1079236]
[1733694440187,8.25921444,235.88,235.83,1.1079236]
[1733694441682,8.25921444,235.86,235.83,1.1079236]
[1733694449271,8.25921444,235.88,235.83,1.1079236]
[1733694451293,20.0,235.9,235.83,1.1079236]
[1733694451600,28.25921444,235.9,235.83,1.1079236]
[1733694452098,8.25921444,235.9,235.84,23.776884]
[1733694454313,8.25921444,235.89,235.84,23.776884]
[1733694455821,8.25921444,235.9,235.84,23.776884]
[1733694458037,3.1787,235.95,235.84,32.03609844]
[1733694458213,8.25921444,235.91,235.84,32.03609844]
[1733694458923,8.25921444,235.9,235.84,23.776884]
[1733694462524,8.25921444,235.91,235.84,23.776884]
[1733694464744,8.25921444,235.88,235.84,23.776884]
[1733694465225,8.25921444,235.87,235.84,23.776884]
[1733694466996,8.25921444,235.88,235.84,23.776884]
[1733694467802,8.25921444,235.9,235.84,23.776884]
[1733694476023,8.25921444,235.9,235.83,1.1079236]
[1733694477035,8.25921444,235.88,235.83,1.1079236]
[1733694478134,8.25921444,235.86,235.83,1.1079236]
[1733694478732,8.25921444,235.84,235.83,1.1079236]
[1733694479828,8.25921444,235.85,235.83,1.1079236]
[1733694483733,8.25921444,235.84,235.83,1.1079236]
[1733694485749,8.38470444,235.84,235.83,1.1079236]
[1733694487543,20.0,235.81,235.71,1.6488]
[1733694487740,9.3017,235.83,235.71,1.6488]
[1733694487741,8.25921444,235.74,235.71,1.6488]
[1733694487920,8.25921444,235.74,235.67,8.25921444]
[1733694493350,8.25921444,235.75,235.68,8.25921444]
[1733694493872,23.30619,235.8,235.71,8.25921444]
[1733694494044,8.25921444,235.78,235.71,8.25921444]
[1733694494968,8.25921444,235.79,235.72,8.25921444]
[1733694496160,8.25921444,235.78,235.71,8.25921444]
[1733694497149,8.25921444,235.77,235.7,8.25921444]
[1733694498459,8.25921444,235.77,235.67,24.41321401]
[1733694498644,8.25921444,235.77,235.7,8.25921444]
[1733694503245,8.25921444,235.74,235.67,23.776884]
[1733694503451,8.25921444,235.73,235.67,23.776884]
[1733694504066,8.25921444,235.73,235.66,9.90801444]
[1733694504360,8.25921444,235.71,235.62,0.63636447]
[1733694504567,8.25921444,235.71,235.64,8.25921444]
[1733694504734,8.25921444,235.7,235.63,8.25921444]
[1733694505842,8.25921444,235.7,235.64,23.776884]
[1733694507041,6.1131,235.75,235.66,8.25921444]
[1733694507350,8.25921444,235.74,235.67,8.25921444]
[1733694508464,8.25921444,235.73,235.66,8.25921444]
[1733694509277,8.25921444,235.72,235.62,23.776884]
[1733694509478,8.25921444,235.71,235.65,23.776884]
[1733694509968,6.1131,235.75,235.66,23.776884]
[1733694509969,8.25921444,235.72,235.66,23.776884]
[1733694511454,8.25921444,235.73,235.66,32.03609844]
[1733694512471,16.980159,235.93,235.71,5.0]
[1733694512675,8.25921444,235.93,235.85,8.25921444]
[1733694513369,6.5105,235.95,235.85,8.25921444]
[1733694513571,8.25921444,235.93,235.85,8.25921444]
[1733694513878,8.25921444,235.92,235.85,8.25921444]
[1733694514586,8.25921444,235.93,235.85,8.25921444]
[1733694518470,0.12549,235.94,235.85,8.25921444]
[1733694518679,8.25921444,235.93,235.85,8.25921444]
[1733694519058,8.25921444,235.91,235.84,8.25921444]
[1733694521470,8.25921444,235.92,235.85,8.25921444]
[1733694522894,0.12549,235.94,235.85,8.25921444]
[1733694523103,8.25921444,235.92,235.85,8.25921444]